[Event "FIDE U16 Olympiad_boards_81-124"]
[Site "Eindhoven, Netherlands"]
[Date "2023.08.14"]
[Round "2.11"]
[White "Samuel Bisnath, Kael"]
[Black "Caceres Benitez, Fernando Israel"]
[Result "1-0"]
[TimeControl "45min+10sec"]
[WhiteElo "1432"]
[BlackElo "1772"]

1. e4 {[%clk 00:45:09]} {[%emt 00:00:10]} e5 {[%clk 00:45:10]} {[%emt
00:00:11]} 2. Nf3 {[%clk 00:45:17]} {[%emt 00:00:01]} Nc6 {[%clk 00:45:11]}
{[%emt 00:00:10]} 3. Bc4 {[%clk 00:45:26]} Nf6 {[%clk 00:45:18]} {[%emt
00:00:03]} 4. Ng5 {[%clk 00:45:30]} {[%emt 00:00:06]} d5 {[%clk 00:45:15]}
{[%emt 00:00:13]} 5. exd5 {[%clk 00:45:38]} {[%emt 00:00:02]} Na5 {[%clk
00:45:20]} {[%emt 00:00:05]} 6. Bb5+ {[%clk 00:45:47]} c6 {[%clk 00:45:08]}
{[%emt 00:00:21]} 7. dxc6 {[%clk 00:45:55]} {[%emt 00:00:03]} bxc6 {[%clk
00:45:13]} {[%emt 00:00:05]} 8. Bd3 {[%clk 00:46:03]} {[%emt 00:00:01]} Nd5
{[%clk 00:44:53]} {[%emt 00:00:29]} 9. Nf3 {[%clk 00:45:31]} {[%emt 00:00:44]}
Bd6 {[%clk 00:44:42]} {[%emt 00:00:20]} 10. O-O {[%clk 00:44:06]} {[%emt
00:01:36]} O-O {[%clk 00:44:16]} {[%emt 00:00:34]} 11. Re1 {[%clk 00:42:28]}
{[%emt 00:01:49]} f5 {[%clk 00:43:31]} {[%emt 00:00:55]} 12. Nxe5 {[%clk
00:40:38]} {[%emt 00:02:00]} Qf6 {[%clk 00:42:40]} {[%emt 00:01:00]} 13. Nf3
{[%clk 00:39:36]} {[%emt 00:01:13]} g5 {[%clk 00:41:27]} {[%emt 00:01:21]} 14.
c3 {[%clk 00:35:58]} {[%emt 00:03:51]} Nf4 {[%clk 00:20:56]} {[%emt 00:20:41]}
15. Bf1 {[%clk 00:35:30]} {[%emt 00:00:37]} g4 {[%clk 00:19:45]} {[%emt
00:01:21]} 16. Nd4 {[%clk 00:33:10]} {[%emt 00:02:30]} c5 {[%clk 00:17:42]}
{[%emt 00:02:13]} 17. Nb5 {[%clk 00:30:25]} {[%emt 00:02:56]} Bb7 {[%clk
00:16:07]} {[%emt 00:01:45]} 18. Nxd6 {[%clk 00:28:06]} {[%emt 00:02:29]} Nh3+
{[%clk 00:15:46]} {[%emt 00:00:31]} 19. gxh3 {[%clk 00:25:00]} {[%emt
00:03:16]} Bf3 {[%clk 00:13:42]} {[%emt 00:02:13]} 20. Be2 {[%clk 00:17:15]}
{[%emt 00:07:55]} Qg6 {[%clk 00:13:28]} {[%emt 00:00:24]} 21. Kf1 {[%clk
00:15:48]} {[%emt 00:01:38]} Bc6 {[%clk 00:11:15]} {[%emt 00:02:21]} 22. Bxg4
{[%clk 00:08:52]} {[%emt 00:07:07]} fxg4 {[%clk 00:09:27]} {[%emt 00:01:58]} 23.
Qxg4 {[%clk 00:08:59]} {[%emt 00:00:04]} Qxg4 {[%clk 00:08:07]} {[%emt
00:01:29]} 24. hxg4 {[%clk 00:09:08]} {[%emt 00:00:02]} Rad8 {[%clk 00:08:13]}
{[%emt 00:00:02]} 25. Nf5 {[%clk 00:08:47]} {[%emt 00:00:32]} Bf3 {[%clk
00:07:29]} {[%emt 00:00:53]} 26. d4 {[%clk 00:08:00]} {[%emt 00:00:59]} cxd4
{[%clk 00:04:54]} {[%emt 00:02:45]} 27. cxd4 {[%clk 00:07:19]} {[%emt
00:00:52]} Nc6 {[%clk 00:04:36]} {[%emt 00:00:27]} 28. Bg5 {[%clk 00:06:46]}
{[%emt 00:00:43]} Rb8 {[%clk 00:03:24]} {[%emt 00:01:21]} 29. Nd2 {[%clk
00:06:33]} {[%emt 00:00:24]} Bd5 {[%clk 00:03:08]} {[%emt 00:00:25]} 30. b3
{[%clk 00:05:58]} {[%emt 00:00:45]} a5 {[%clk 00:02:30]} {[%emt 00:00:48]} 31.
Rac1 {[%emt 00:02:20]} 1-0

[Event "FIDE U16 Olympiad_boards_81-124"]
[Site "Eindhoven, Netherlands"]
[Date "2023.08.14"]
[Round "2.12"]
[White "Mayeregger Gonzalez, Renata"]
[Black "Ramnarine Singh, Aradhana"]
[Result "1-0"]
[TimeControl "45min+10sec"]
[WhiteElo "1407"]
[BlackElo "1210"]

1. e4 {[%clk 00:45:16]} {[%emt 00:00:03]} e5 {[%clk 00:45:18]} {[%emt
00:00:02]} 2. Nc3 {[%clk 00:45:21]} {[%emt 00:00:05]} Nf6 {[%clk 00:45:21]}
{[%emt 00:00:07]} 3. g3 {[%clk 00:45:27]} {[%emt 00:00:04]} Nc6 {[%clk
00:45:18]} {[%emt 00:00:13]} 4. Bg2 {[%clk 00:45:35]} {[%emt 00:00:02]} Bc5
{[%clk 00:45:02]} {[%emt 00:00:26]} 5. Nge2 {[%clk 00:45:40]} {[%emt 00:00:05]}
d6 {[%clk 00:44:31]} {[%emt 00:00:41]} 6. O-O {[%clk 00:45:01]} {[%emt
00:00:48]} O-O {[%clk 00:44:32]} {[%emt 00:00:10]} 7. Na4 {[%clk 00:41:14]}
{[%emt 00:03:57]} Bb6 {[%clk 00:44:05]} {[%emt 00:00:37]} 8. Nxb6 {[%clk
00:41:19]} {[%emt 00:00:06]} axb6 {[%clk 00:44:12]} {[%emt 00:00:02]} 9. d3
{[%clk 00:41:21]} {[%emt 00:00:09]} h6 {[%clk 00:44:12]} {[%emt 00:00:10]} 10.
h3 {[%clk 00:41:18]} {[%emt 00:00:12]} Be6 {[%clk 00:43:08]} {[%emt 00:01:14]}
11. f4 {[%clk 00:41:24]} {[%emt 00:00:05]} exf4 {[%clk 00:40:35]} {[%emt
00:02:42]} 12. gxf4 {[%clk 00:41:20]} {[%emt 00:00:14]} Qe7 {[%clk 00:37:27]}
{[%emt 00:03:19]} 13. Ng3 {[%clk 00:39:20]} {[%emt 00:02:09]} Rfe8 {[%clk
00:32:25]} {[%emt 00:05:12]} 14. Be3 {[%clk 00:38:36]} {[%emt 00:00:54]} Rad8
{[%clk 00:29:11]} {[%emt 00:03:25]} 15. Qe2 {[%clk 00:37:37]} {[%emt 00:01:08]}
Bc8 {[%clk 00:25:24]} {[%emt 00:03:57]} 16. Rae1 {[%clk 00:35:08]} {[%emt
00:02:40]} Kh7 {[%clk 00:20:08]} {[%emt 00:05:25]} 17. d4 {[%clk 00:33:27]}
{[%emt 00:01:51]} Rf8 {[%clk 00:17:08]} {[%emt 00:03:11]} 18. c3 {[%clk
00:32:49]} {[%emt 00:00:47]} Qe8 {[%clk 00:09:56]} {[%emt 00:07:22]} 19. Qc2
{[%clk 00:31:52]} {[%emt 00:01:07]} Kh8 {[%clk 00:09:25]} {[%emt 00:00:41]} 20.
e5 {[%clk 00:31:47]} {[%emt 00:00:15]} dxe5 {[%clk 00:08:37]} {[%emt 00:00:58]}
21. fxe5 {[%clk 00:31:55]} {[%emt 00:00:03]} Nd5 {[%clk 00:07:42]} {[%emt
00:01:05]} 22. Bc1 {[%clk 00:28:28]} {[%emt 00:03:36]} b5 {[%clk 00:04:47]}
{[%emt 00:03:05]} 23. Qf2 {[%clk 00:24:47]} {[%emt 00:03:51]} Nce7 {[%clk
00:02:52]} {[%emt 00:02:06]} 24. Qc2 {[%clk 00:14:33]} {[%emt 00:10:24]} Be6
{[%clk 00:01:31]} {[%emt 00:01:30]} 25. Nh5 {[%clk 00:13:58]} {[%emt 00:00:44]}
Ng6 {[%clk 00:00:20]} {[%emt 00:01:22]} 26. Nf4 {[%clk 00:12:26]} {[%emt
00:01:42]} Ngxf4 {[%clk 00:00:14]} {[%emt 00:00:16]} 27. Bxf4 {[%clk 00:12:35]}
{[%emt 00:00:02]} Nxf4 {[%clk 00:00:17]} {[%emt 00:00:06]} 28. Rxf4 {[%clk
00:12:43]} {[%emt 00:00:02]} g6 {[%clk 00:00:18]} {[%emt 00:00:09]} 29. b3
{[%clk 00:12:25]} {[%emt 00:00:28]} c6 {[%clk 00:00:19]} {[%emt 00:00:09]} 30.
Ref1 {[%clk 00:12:30]} {[%emt 00:00:05]} Qe7 {[%clk 00:00:15]} {[%emt
00:00:14]} 31. Rf6 {[%clk 00:12:34]} {[%emt 00:00:06]} Bd5 {[%clk 00:00:12]}
{[%emt 00:00:13]} 32. Qd2 {[%clk 00:12:37]} {[%emt 00:00:07]} Kh7 {[%clk
00:00:00]} {[%emt 00:00:12]} 1-0

[Event "FIDE U16 Olympiad_boards_81-124"]
[Site "Eindhoven, Netherlands"]
[Date "2023.08.14"]
[Round "2.13"]
[White "Laamim, Roaa"]
[Black "Huang, Zi-Chen"]
[Result "1/2-1/2"]
[TimeControl "45min+10sec"]
[WhiteElo "1626"]
[BlackElo "1492"]

1. e4 {[%clk 00:45:18]} {[%emt 00:00:02]} e5 {[%clk 00:45:18]} {[%emt
00:00:02]} 2. Nf3 {[%clk 00:45:27]} {[%emt 00:00:01]} Nc6 {[%clk 00:45:27]}
{[%emt 00:00:01]} 3. d4 {[%clk 00:45:36]} exd4 {[%clk 00:45:35]} {[%emt
00:00:02]} 4. Nxd4 {[%clk 00:45:45]} Nf6 {[%clk 00:45:33]} {[%emt 00:00:11]} 5.
Nc3 {[%clk 00:45:52]} {[%emt 00:00:03]} Bb4 {[%clk 00:45:31]} {[%emt 00:00:13]}
6. Nxc6 {[%clk 00:45:58]} {[%emt 00:00:04]} bxc6 {[%clk 00:45:39]} {[%emt
00:00:01]} 7. Bd3 {[%clk 00:46:07]} d5 {[%clk 00:45:48]} {[%emt 00:00:02]} 8.
exd5 {[%clk 00:46:15]} {[%emt 00:00:02]} cxd5 {[%clk 00:45:56]} {[%emt
00:00:01]} 9. O-O {[%clk 00:46:22]} {[%emt 00:00:03]} O-O {[%clk 00:46:04]}
{[%emt 00:00:02]} 10. h3 {[%clk 00:46:20]} {[%emt 00:00:13]} c6 {[%clk
00:45:25]} {[%emt 00:00:49]} 11. Qf3 {[%clk 00:44:08]} {[%emt 00:02:22]} Be6
{[%clk 00:44:01]} {[%emt 00:01:34]} 12. Bf4 {[%clk 00:43:47]} {[%emt 00:00:31]}
Bd6 {[%clk 00:41:11]} {[%emt 00:02:59]} 13. Rfe1 {[%emt 00:03:01]} Rb8 {[%clk
00:37:46]} {[%emt 00:02:02]} 14. b3 {[%clk 00:42:29]} {[%emt 00:00:11]} Rb4
{[%clk 00:33:55]} {[%emt 00:04:01]} 15. Ne2 {[%clk 00:41:41]} {[%emt 00:00:58]}
c5 {[%clk 00:30:09]} {[%emt 00:03:55]} 16. Rad1 {[%clk 00:41:13]} {[%emt
00:00:38]} Re8 {[%clk 00:27:32]} {[%emt 00:02:47]} 17. Bg5 {[%clk 00:34:42]}
{[%emt 00:06:41]} h6 {[%clk 00:22:49]} {[%emt 00:04:53]} 18. Bf4 {[%clk
00:28:18]} {[%emt 00:06:34]} Bxf4 {[%clk 00:15:00]} {[%emt 00:08:00]} 19. Nxf4
{[%clk 00:28:18]} {[%emt 00:00:10]} Qb8 {[%clk 00:08:23]} {[%emt 00:06:47]} 20.
c4 {[%clk 00:17:42]} {[%emt 00:10:46]} dxc4 {[%clk 00:03:06]} {[%emt 00:05:28]}
21. Nxe6 {[%clk 00:16:17]} {[%emt 00:01:35]} cxd3 {[%clk 00:01:10]} {[%emt
00:02:06]} 22. Nxc5 {[%clk 00:16:07]} {[%emt 00:00:20]} Rxe1+ {[%clk 00:00:32]}
{[%emt 00:00:48]} 23. Rxe1 {[%clk 00:16:16]} {[%emt 00:00:01]} d2 {[%clk
00:00:13]} {[%emt 00:00:28]} 24. Rd1 {[%clk 00:14:32]} {[%emt 00:01:54]} Qd6
{[%clk 00:00:11]} {[%emt 00:00:13]} 25. Nb7 {[%clk 00:08:41]} {[%emt 00:06:01]}
Qe7 {[%clk 00:00:11]} {[%emt 00:00:09]} 26. Na5 {[%clk 00:07:51]} {[%emt
00:01:01]} Re4 {[%clk 00:00:11]} {[%emt 00:00:11]} 27. Rxd2 {[%clk 00:07:07]}
{[%emt 00:00:53]} Re1+ {[%clk 00:00:15]} {[%emt 00:00:05]} 28. Kh2 {[%clk
00:07:12]} {[%emt 00:00:05]} Qc7+ {[%clk 00:00:19]} {[%emt 00:00:07]} 29. g3
{[%clk 00:07:08]} {[%emt 00:00:13]} Qxa5 {[%clk 00:00:19]} {[%emt 00:00:11]} 30.
Rc2 {[%emt 00:00:48]} Qd5 {[%clk 00:00:12]} {[%emt 00:00:16]} 31. Qxd5 {[%clk
00:05:56]} {[%emt 00:00:44]} Nxd5 {[%clk 00:00:21]} {[%emt 00:00:02]} 32. Rd2
{[%clk 00:05:51]} {[%emt 00:00:14]} Nf6 {[%clk 00:00:18]} {[%emt 00:00:14]} 33.
Rc2 {[%clk 00:05:52]} {[%emt 00:00:09]} Ra1 {[%clk 00:00:20]} {[%emt 00:00:08]}
34. Kg2 {[%clk 00:05:36]} {[%emt 00:00:26]} g6 {[%clk 00:00:20]} {[%emt
00:00:10]} 35. Rc6 {[%clk 00:05:29]} {[%emt 00:00:17]} Kg7 {[%clk 00:00:14]}
{[%emt 00:00:16]} 36. Ra6 {[%clk 00:05:34]} {[%emt 00:00:05]} Nd5 {[%clk
00:00:13]} {[%emt 00:00:11]} 37. Rxa7 {[%clk 00:05:41]} {[%emt 00:00:03]} Nc3
{[%clk 00:00:12]} {[%emt 00:00:11]} 38. b4 {[%clk 00:02:32]} {[%emt 00:03:19]}
Nxa2 {[%clk 00:00:12]} {[%emt 00:00:10]} 39. b5 {[%clk 00:02:40]} {[%emt
00:00:02]} Rb1 {[%clk 00:00:18]} {[%emt 00:00:04]} 40. Rxa2 {[%clk 00:02:47]}
{[%emt 00:00:03]} Rxb5 {[%clk 00:00:26]} {[%emt 00:00:01]} 41. Ra6 {[%clk
00:01:38]} {[%emt 00:01:20]} h5 {[%clk 00:00:28]} {[%emt 00:00:08]} 42. g4
{[%clk 00:01:21]} {[%emt 00:00:27]} hxg4 {[%clk 00:00:32]} {[%emt 00:00:06]} 43.
hxg4 {[%clk 00:01:28]} {[%emt 00:00:02]} g5 {[%clk 00:00:16]} {[%emt 00:00:27]}
44. Rd6 {[%clk 00:01:04]} {[%emt 00:00:34]} Rb4 {[%clk 00:00:16]} {[%emt
00:00:10]} 45. Kf3 {[%clk 00:00:41]} {[%emt 00:00:32]} Rf4+ {[%clk 00:00:21]}
{[%emt 00:00:05]} 46. Kg3 {[%clk 00:00:47]} {[%emt 00:00:05]} f6 {[%clk
00:00:22]} {[%emt 00:00:09]} 47. Rd7+ {[%clk 00:00:35]} {[%emt 00:00:22]} Kg6
{[%clk 00:00:30]} {[%emt 00:00:02]} 48. Rd6 {[%clk 00:00:28]} {[%emt 00:00:17]}
Kg7 {[%clk 00:00:35]} {[%emt 00:00:05]} 49. Ra6 {[%clk 00:00:26]} {[%emt
00:00:11]} Kg6 {[%clk 00:00:37]} {[%emt 00:00:08]} 50. f3 {[%clk 00:00:32]}
{[%emt 00:00:05]} Rb4 {[%clk 00:00:23]} {[%emt 00:00:24]} 51. Ra7 {[%clk
00:00:31]} {[%emt 00:00:11]} Rc4 {[%clk 00:00:29]} {[%emt 00:00:03]} 52. Ra6
{[%clk 00:00:34]} {[%emt 00:00:07]} Rb4 {[%clk 00:00:35]} {[%emt 00:00:05]}
1/2-1/2

[Event "FIDE U16 Olympiad_boards_81-124"]
[Site "Eindhoven, Netherlands"]
[Date "2023.08.14"]
[Round "2.14"]
[White "Lai, Hong-Yi"]
[Black "Najimi, Mohamed Khalil"]
[Result "0-1"]
[TimeControl "45min+10sec"]
[WhiteElo "1469"]
[BlackElo "1812"]

1. d4 {[%clk 00:45:18]} {[%emt 00:00:02]} Nf6 {[%clk 00:45:19]} {[%emt
00:00:02]} 2. c4 {[%clk 00:45:26]} {[%emt 00:00:02]} g6 {[%clk 00:45:27]}
{[%emt 00:00:01]} 3. Nc3 {[%clk 00:45:34]} {[%emt 00:00:02]} Bg7 {[%clk
00:45:36]} {[%emt 00:00:02]} 4. e4 {[%clk 00:45:41]} {[%emt 00:00:03]} d6
{[%clk 00:45:44]} {[%emt 00:00:02]} 5. Be2 {[%clk 00:45:49]} {[%emt 00:00:02]}
O-O {[%clk 00:45:45]} {[%emt 00:00:09]} 6. Be3 {[%clk 00:45:55]} {[%emt
00:00:04]} e5 {[%clk 00:45:15]} {[%emt 00:00:39]} 7. d5 {[%clk 00:46:02]}
{[%emt 00:00:03]} Nbd7 {[%clk 00:44:05]} {[%emt 00:01:21]} 8. g4 {[%clk
00:46:09]} {[%emt 00:00:03]} Nc5 {[%clk 00:39:11]} {[%emt 00:05:03]} 9. f3
{[%clk 00:46:16]} {[%emt 00:00:02]} h5 {[%clk 00:39:15]} {[%emt 00:00:07]} 10.
g5 {[%clk 00:42:54]} {[%emt 00:03:32]} Nh7 {[%clk 00:39:17]} {[%emt 00:00:09]}
11. b4 {[%clk 00:42:35]} {[%emt 00:00:28]} Nd7 {[%clk 00:35:13]} {[%emt
00:04:14]} 12. h4 {[%clk 00:38:13]} {[%emt 00:04:32]} f6 {[%clk 00:34:03]}
{[%emt 00:01:21]} 13. Nh3 {[%clk 00:35:39]} {[%emt 00:02:43]} a5 {[%clk
00:28:08]} {[%emt 00:06:05]} 14. a3 {[%clk 00:25:40]} {[%emt 00:10:09]} b6
{[%clk 00:23:51]} {[%emt 00:04:28]} 15. Ra2 {[%clk 00:20:26]} {[%emt 00:05:23]}
fxg5 {[%clk 00:15:46]} {[%emt 00:08:15]} 16. Nxg5 {[%clk 00:18:11]} {[%emt
00:02:25]} Nxg5 {[%clk 00:15:17]} {[%emt 00:00:39]} 17. hxg5 {[%clk 00:13:46]}
{[%emt 00:04:35]} Rf7 {[%clk 00:14:19]} {[%emt 00:01:08]} 18. Bf1 {[%clk
00:11:01]} {[%emt 00:02:55]} axb4 {[%clk 00:14:26]} {[%emt 00:00:03]} 19. axb4
{[%clk 00:11:01]} {[%emt 00:00:10]} Rxa2 {[%clk 00:14:34]} {[%emt 00:00:02]} 20.
Nxa2 {[%clk 00:11:08]} {[%emt 00:00:03]} Nf8 {[%clk 00:14:31]} {[%emt
00:00:13]} 21. Bh3 {[%clk 00:09:14]} {[%emt 00:02:04]} Bxh3 {[%clk 00:10:54]}
{[%emt 00:03:47]} 22. Rxh3 {[%clk 00:09:23]} {[%emt 00:00:02]} Qc8 {[%clk
00:11:02]} {[%emt 00:00:01]} 23. Rh2 {[%clk 00:07:29]} {[%emt 00:02:05]} Qa6
{[%clk 00:10:20]} {[%emt 00:00:52]} 24. Qe2 {[%clk 00:06:20]} {[%emt 00:01:18]}
Qa3 {[%clk 00:08:31]} {[%emt 00:01:59]} 25. Kf2 {[%clk 00:05:53]} {[%emt
00:00:37]} Nh7 {[%clk 00:07:54]} {[%emt 00:00:48]} 26. Bc1 {[%clk 00:04:28]}
{[%emt 00:01:34]} Qb3 {[%clk 00:07:18]} {[%emt 00:00:46]} 27. Be3 {[%clk
00:03:32]} {[%emt 00:01:07]} Bf8 {[%clk 00:06:34]} {[%emt 00:00:53]} 28. Rg2
{[%clk 00:03:17]} {[%emt 00:00:26]} Be7 {[%clk 00:06:28]} {[%emt 00:00:15]} 29.
b5 {[%clk 00:02:38]} {[%emt 00:00:49]} Qb1 {[%clk 00:05:19]} {[%emt 00:01:19]}
30. Rg1 {[%clk 00:02:19]} {[%emt 00:00:29]} Qxe4 {[%clk 00:05:24]} {[%emt
00:00:05]} 31. Nc3 {[%clk 00:02:06]} {[%emt 00:00:22]} Qh4+ {[%clk 00:05:09]}
{[%emt 00:00:26]} 32. Kg2 {[%clk 00:01:35]} {[%emt 00:00:41]} Rf5 {[%clk
00:00:58]} {[%emt 00:04:21]} 33. Rh1 {[%clk 00:01:33]} {[%emt 00:00:12]} Rxg5+
{[%clk 00:00:55]} {[%emt 00:00:13]} 34. Bxg5 {[%clk 00:01:36]} {[%emt
00:00:07]} Qxg5+ {[%clk 00:01:03]} {[%emt 00:00:02]} 35. Kf2 {[%clk 00:01:31]}
{[%emt 00:00:13]} Qf4 {[%clk 00:00:25]} {[%emt 00:00:49]} 36. Ne4 {[%clk
00:00:40]} {[%emt 00:01:02]} Nf6 {[%clk 00:00:18]} {[%emt 00:00:17]} 37. Nxf6+
{[%clk 00:00:24]} {[%emt 00:00:26]} Bxf6 {[%clk 00:00:27]} {[%emt 00:00:02]} 38.
Rh3 {[%clk 00:00:14]} {[%emt 00:00:20]} Kh7 {[%clk 00:00:24]} {[%emt 00:00:13]}
39. Kg2 {[%clk 00:00:16]} {[%emt 00:00:07]} Bg5 {[%clk 00:00:19]} {[%emt
00:00:16]} 40. Qc2 {[%clk 00:00:12]} {[%emt 00:00:13]} Qf6 {[%clk 00:00:14]}
{[%emt 00:00:15]} 41. Rxh5+ {[%clk 00:00:20]} {[%emt 00:00:03]} Kg7 {[%clk
00:00:22]} {[%emt 00:00:01]} 42. Rh3 {[%clk 00:00:23]} {[%emt 00:00:07]} Bf4
{[%clk 00:00:29]} {[%emt 00:00:03]} 43. Qe4 {[%clk 00:00:21]} {[%emt 00:00:12]}
Qg5+ {[%clk 00:00:22]} {[%emt 00:00:17]} 44. Kf2 {[%clk 00:00:28]} {[%emt
00:00:02]} Qd8 {[%clk 00:00:23]} {[%emt 00:00:10]} 45. Rh1 {[%clk 00:00:32]}
{[%emt 00:00:06]} Qa8 {[%clk 00:00:29]} {[%emt 00:00:04]} 46. Re1 {[%clk
00:00:30]} {[%emt 00:00:11]} Qa2+ {[%clk 00:00:35]} {[%emt 00:00:05]} 47. Re2
{[%clk 00:00:39]} {[%emt 00:00:02]} Qa1 {[%clk 00:00:43]} {[%emt 00:00:02]} 48.
Kg2 {[%clk 00:00:29]} {[%emt 00:00:20]} Qa8 {[%clk 00:00:40]} {[%emt 00:00:13]}
49. Qc2 {[%clk 00:00:29]} {[%emt 00:00:08]} Qh8 {[%clk 00:00:42]} {[%emt
00:00:09]} 50. Re4 {[%clk 00:00:00]} {[%emt 00:00:30]} 0-1